Workbook

Sheet полевые раб.
B1: ИНФОРМАЦИЯ ПО ВЕРЕЩАГИНСКОМУ РАЙОНУ
A2: Полевые работы на 17.05.2019
A3: Наименование хозяйства | D3: Подкормка многолетних трав, га | E3: Подкормка озимых, га | F3: Боронование многолетних трав, га | G3: Боронование озимых, га | H3: Весновспашка,га | I3: Культивация | J3: Закрытие влаги, га | K3: Протравлено семян, т
A4: ОАО ППС "Тимирязевский" | D4: 98 | E4: 30 | F4: 400 | I4: 23 | J4: 34
A5: ООО "Ленинское" | F5: 350 | J5: 20
A6: ООО "Агросепыч" | D6: 60 | F6: 1268 | G6: 134 | I6: 1118 | J6: 1448
A7: ООО АП "Соколово" | F7: 800 | I7: 300 | J7: 530
A8: ООО АФ "Галинское" | F8: 2110 | H8: 79 | I8: 79 | J8: 0
A9: ООО "Заполье" | D9: 240 | F9: 900 | I9: 600 | J9: 1100
A10: ООО АП "Заря Путино" | D10: 3245 | E10: 502 | F10: 3245 | G10: 953 | H10: 83 | I10: 1856 | J10: 3361
A11: Итого по предприятиям: | D11: =SUM(D4:D10) -> 3643 | E11: 532 | F11: 9073 | G11: 1087 | H11: 162 | I11: 3976 | J11: =SUM(J4:J10) -> 6493 | K11: =SUM(K4:K10) -> 0
A12: КФХ | F12: 727.2 | H12: 100 | I12: 662 | J12: 711
A13: ВСЕГО: | D13: =D11+D12 -> 3643 | E13: =E11+E12 -> 532 | F13: 9800.2 | G13: 1087 | H13: 262 | I13: 4638 | J13: 7204 | K13: 0
A14: По району на 17.05.2018г. | D14: 2753 | E14: 695 | F14: 6975 | G14: 285 | I14: 3438 | J14: 5230 | K14: 270

Sheet сев
A2: Наименование хозяйства | D2: Яровой сев (зерновые и зернобобовые), га | S2: Зрновые и зернобобовые, всего, га | V2: Яровой сев (прочие), га | AE2: Яровой сев, всего, га | AG2: %
D3: пшеница | G3: ячмень | J3: овес | M3: горох | P3: вика | S3: План | T3: Факт | U3: % | V3: рапс | Y3: кукуруза | AB3: однолетние | AC3: мн. травы б/п | AD3: мн. травы п/п | AE3: План | AF3: Факт
D4: план | E4: факт | F4: % | G4: план | H4: факт | I4: % | J4: план | K4: факт | L4: % | M4: план | N4: факт | O4: % | P4: план | Q4: факт | R4: % | V4: план | W4: факт | X4: % | Y4: план | Z4: факт | AA4: %
A5: ОАО ППС "Тимирязевский" | F5: =E5/D5*100 ->  | I5: =H5/G5*100 ->  | L5: =K5/J5*100 ->  | O5: =N5/M5*100 ->  | R5: =Q5/P5*100 ->  | S5: 0 | T5: 0 | U5: =T5/S5*100 ->  | X5: =W5/V5*100 ->  | AA5: =Z5/Y5*100 ->  | AB5: 34 | AE5: 100 | AF5: =T5+W5+Z5+AB5+AC5+AD5 -> 34 | AG5: =AF5/AE5*100 -> 34.0
A6: ООО "Ленинское" | F6: =E6/D6*100 ->  | I6: =H6/G6*100 ->  | L6: =K6/J6*100 ->  | O6: =N6/M6*100 ->  | R6: =Q6/P6*100 ->  | S6: 0 | T6: 0 | AE6: 350 | AF6: =T6+W6+Z6+AB6+AC6+AD6 -> 0 | AG6: 0.0
A7: ООО "Агросепыч" | D7: 824 | E7: 461 | F7: 55.95 | G7: 885 | H7: 221 | I7: 24.97 | J7: 402 | K7: 266 | L7: 66.17 | M7: 265 | N7: 5 | O7: 1.89 | S7: 2376 | T7: =E7+H7+K7+N7+Q7 -> 953 | U7: 40.11 | AB7: 207 | AE7: 3390 | AF7: 1160 | AG7: 34.2
A8: ООО АП "Соколово" | D8: 120 | F8: 0.00 | J8: 170 | K8: 130 | L8: 76.47 | S8: 290 | T8: =E8+H8+K8+N8+Q8 -> 130 | U8: 44.83 | AB8: 120 | AE8: 690 | AF8: 250 | AG8: 36.2
A9: ООО АФ "Галинское" | D9: 80 | F9: 0.00 | J9: 290 | K9: 60 | L9: 20.69 | S9: 370 | T9: 60 | U9: 16.22 | AE9: 900 | AF9: 60 | AG9: 6.7
A10: ООО "Заполье" | D10: 100 | E10: 100 | F10: 100.00 | G10: 112 | H10: 112 | I10: 100.00 | J10: 288 | K10: 288 | L10: 100.00 | S10: 500 | T10: 500 | U10: 100.00 | AE10: 1300 | AF10: 500 | AG10: 38.5
A11: ООО АП "Заря Путино" | D11: 388 | E11: 208 | F11: 53.61 | G11: 1272 | H11: 524 | I11: 41.19 | J11: 398 | K11: 385 | L11: 96.73 | M11: 115 | O11: 0.00 | S11: 2173 | T11: 1117 | U11: 51.40 | V11: 632 | W11: 632 | X11: 100.00 | Y11: 952 | Z11: 109 | AA11: 11.45 | AB11: 365 | AE11: 5486 | AF11: 2223 | AG11: 40.5
A12: Итого по предприятиям: | D12: =SUM(D5:D11) -> 1512 | E12: =SUM(E5:E11) -> 769 | F12: 50.86 | G12: 2269 | H12: 857 | I12: 37.77 | J12: 1548 | K12: 1129 | L12: 72.93 | M12: 380 | N12: 5 | O12: 1.32 | P12: 0 | Q12: 0 | S12: 5709 | T12: 2760 | U12: 48.34 | V12: 632 | W12: 632 | X12: 100.00 | Y12: 952 | Z12: 109 | AA12: 11.45 | AB12: 726 | AC12: 0 | AD12: 0 | AE12: 12216 | AF12: 4227 | AG12: 34.6
A13: КФХ | D13: 239 | E13: 239 | F13: 100.00 | G13: 63 | H13: 63 | I13: 100.00 | J13: 303 | K13: 303 | L13: 100.00 | S13: 504 | T13: 504 | U13: 100.00 | AE13: 600 | AF13: 611 | AG13: 101.8
A14: ВСЕГО: | D14: =D12+D13 -> 1751 | E14: =E12+E13 -> 1008 | F14: 57.57 | G14: 2332 | H14: 920 | I14: 39.45 | J14: 1851 | K14: 1432 | L14: 77.36 | M14: 380 | N14: 5 | O14: 1.32 | P14: 0 | Q14: 0 | S14: 6213 | T14: 3264 | U14: 52.54 | V14: 632 | W14: 632 | X14: 100.00 | Y14: 952 | Z14: 109 | AA14: 11.45 | AB14: 726 | AC14: 0 | AD14: 0 | AE14: 12816 | AF14: 4838 | AG14: 37.7
A15: По району на 17.05.2018г. | E15: 481 | H15: 848 | K15: 724 | N15: 162 | Q15: 0 | T15: 2215 | W15: 284 | Z15: 20 | AB15: 109 | AF15: 2628

Sheet полев.раб.КФХ
A1: Полевые работы
A2: Наименование хозяйства | D2: Подкормка многолетних трав, га | E2: Подкормка озимых, га | F2: Боронование многолетних трав, га | G2: Боронование озимых, га | H2: Весновспашка,га | I2: Культивация | J2: Закрытие влаги, га | K2: Протравлено семян, т
A3: Азанов П.И. | F3: 50 | H3: 15 | I3: 35 | J3: 35
A4: Мартюшев В.А. | F4: 40 | I4: 138 | J4: 138 | L4: закр.вл. Закончил
A5: Шипицын В.А. | F5: 29 | J5: 31 | L5: закончил
A6: Филимонов М.П. | F6: 110 | H6: 70 | I6: 350 | J6: 350
A7: Кадочников В.А. | F7: 277 | I7: 50 | J7: 50
A8: Соловьев (проч.) | F8: 133.2 | I8: 38 | J8: 57
A9: Илюшин П.З. (проч.) | I9: 1
A10: Баженов С.С. (проч.) | F10: 28 | I10: 20 | J10: 20
A11: Жданов А.И. (проч.) | F11: 60 | H11: 15 | I11: 30 | J11: 30 | L11: закончил
A12: ВСЕГО: | F12: =SUM(F3:F11) -> 727.2 | G12: =SUM(G3:G11) -> 0 | H12: 100 | I12: 662 | J12: 711 | K12: 0

Sheet сев КФХ
A2: Наименование хозяйства | D2: Посев зерновых и зернобобовых, га | S2: Всего зерновых и зернобобовых, га | V2: Яровой сев, га | AE2: Яровой сев всего, га | AG2: %
D3: пшеница | G3: ячмень | J3: овес | M3: горох | P3: вика | S3: План | T3: Факт | U3: % | V3: рапс | Y3: кукуруза | AB3: прочие однолетние | AC3: мн. травы б/п | AD3: мног.травы подпокр. | AE3: План | AF3: Факт
D4: план | E4: факт | F4: % | G4: план | H4: факт | I4: % | J4: план | K4: факт | L4: % | M4: план | N4: факт | O4: % | P4: план | Q4: факт | R4: % | V4: план | W4: факт | X4: % | Y4: план | Z4: факт | AA4: %
A5: Азанов П.И. | D5: 35 | E5: 35 | F5: =E5/D5*100 -> 100 | I5: =H5/G5*100 ->  | J5: 15 | K5: 15 | L5: =K5/J5*100 -> 100 | O5: =N5/M5*100 ->  | R5: =Q5/P5*100 ->  | S5: =D5+G5+J5+M5+P5 -> 50 | T5: =E5+H5+K5+N5+Q5 -> 50 | U5: =T5/S5*100 -> 100 | X5: =W5/V5*100 ->  | AA5: =Z5/Y5*100 ->  | AF5: =T5+W5+Z5+AB5+AC5+AD5 -> 50 | AG5: =AF5/AE5*100 -> 
A6: Мартюшев В.А. | D6: 24 | E6: 24 | F6: =E6/D6*100 -> 100 | G6: 41 | H6: 41 | I6: =H6/G6*100 -> 100 | J6: 46 | K6: 46 | L6: =K6/J6*100 -> 100 | O6: =N6/M6*100 ->  | R6: =Q6/P6*100 ->  | S6: =D6+G6+J6+M6+P6 -> 111 | T6: =E6+H6+K6+N6+Q6 -> 111 | U6: 100.0 | X6: =W6/V6*100 ->  | AA6: =Z6/Y6*100 ->  | AF6: =T6+W6+Z6+AB6+AC6+AD6 -> 111
A7: Шипицын В.А. | D7: 21 | E7: 21 | F7: 100 | J7: 15 | K7: 15 | L7: 100 | S7: 36 | T7: 36 | U7: 100.0 | AF7: 36
A8: Филимонов М.П. | D8: 130 | E8: 130 | F8: 100 | J8: 130 | K8: 130 | L8: 100 | S8: 260 | T8: 260 | U8: 100.0 | AF8: 260
A9: Кадочников В.А. | J9: 50 | K9: 50 | L9: 100 | S9: 50 | T9: 50 | U9: 100.0 | AF9: 50
A10: Сольвьев (проч.) | D10: 14 | E10: 14 | F10: 100 | G10: 12 | H10: 12 | I10: 100 | J10: 32 | K10: 32 | L10: 100 | S10: 58 | T10: 58 | U10: 100.0 | AF10: 58
A11: Илюшин П.З. (проч.) | S11: 0 | T11: 0 | AF11: 0
A12: Баженов С.С. (проч.) | D12: 10 | E12: 10 | F12: 100 | J12: 10 | K12: 10 | L12: 100 | S12: 20 | T12: 20 | U12: 100.0 | AB12: =SUM(AB5:AB11) -> 0 | AE12: =SUM(AE5:AE11) -> 0 | AF12: 20
A13: Жданов А.И. (проч.) | D13: 5 | E13: 5 | F13: 100 | G13: 10 | H13: 10 | I13: 100 | J13: 5 | K13: 5 | L13: 100 | S13: 20 | T13: 20 | U13: 100.0 | AF13: 20
A14: ВСЕГО: | D14: =SUM(D5:D13) -> 239 | E14: =SUM(E5:E13) -> 239 | F14: 100 | G14: 63 | H14: 63 | I14: 100 | J14: 303 | K14: 303 | L14: 100 | M14: 0 | N14: 0 | P14: 0 | Q14: 0 | S14: 605 | T14: 605 | V14: 0 | W14: 0 | Y14: 0 | Z14: 0 | AB14: 0 | AC14: 0 | AD14: 0 | AE14: 0 | AF14: 605
A15: По району на 23.05.2017 г.

Sheet овощи
B1: картофель
A2: Жданов А.И. (проч.) | B2: 5
A3: Илюшин П.З. (проч.) | B3: 1
